[Event "GrandPrix_30.05"]
[Site "Chess.com"]
[Date "2020.05.30"]
[Round "5"]
[White "abraham1982"]
[Black "Kopytkin"]
[Result "1-0"]
[WhiteElo "2197"]
[BlackElo "2074"]
[TimeControl "600+2"]
[EndTime "10:25:00 PDT"]
[Termination "abraham1982 won by resignation"]

1. e4 {[%clk 0:09:47.3]} 1... c6 {[%clk 0:09:50.5]} 2. d4 {[%clk 0:09:44.6]}
2... d5 {[%clk 0:09:51]} 3. exd5 {[%clk 0:09:39.3]} 3... cxd5 {[%clk 0:09:51.6]}
4. c4 {[%clk 0:09:39.1]} 4... Nf6 {[%clk 0:09:52.3]} 5. Nc3 {[%clk 0:09:38.6]}
5... g6 {[%clk 0:09:53.5]} 6. Qb3 {[%clk 0:09:35.8]} 6... Bg7 {[%clk 0:09:53.9]}
7. cxd5 {[%clk 0:09:36]} 7... O-O {[%clk 0:09:55]} 8. Nf3 {[%clk 0:09:26.5]}
8... Nbd7 {[%clk 0:09:55.2]} 9. Bg5 {[%clk 0:09:16.4]} 9... Nb6 {[%clk
0:09:55.4]} 10. Bxf6 {[%clk 0:09:15.7]} 10... Bxf6 {[%clk 0:09:46.2]} 11. a4
{[%clk 0:09:10.4]} 11... Bf5 {[%clk 0:08:54.6]} 12. a5 {[%clk 0:09:04.9]} 12...
Nc8 {[%clk 0:08:53.6]} 13. Be2 {[%clk 0:08:59.8]} 13... Nd6 {[%clk 0:08:41.3]}
14. Ne5 {[%clk 0:08:58.2]} 14... a6 {[%clk 0:08:14.7]} 15. O-O {[%clk
0:08:53.7]} 15... Rc8 {[%clk 0:08:15.5]} 16. Rfd1 {[%clk 0:08:44.4]} 16... h5
{[%clk 0:08:04.7]} 17. Ra4 {[%clk 0:08:25.2]} 17... h4 {[%clk 0:07:43.2]} 18. h3
{[%clk 0:08:18.5]} 18... Rc7 {[%clk 0:07:26.8]} 19. Nd3 {[%clk 0:07:51.8]} 19...
Qc8 {[%clk 0:05:57.1]} 20. Nc5 {[%clk 0:07:26.6]} 20... Kg7 {[%clk 0:04:24.7]}
21. Bf3 {[%clk 0:07:17.4]} 21... Rh8 {[%clk 0:03:56]} 22. N3e4 {[%clk 0:07:15]}
22... Bxe4 {[%clk 0:03:27.1]} 23. Bxe4 {[%clk 0:06:30.4]} 23... Rd8 {[%clk
0:02:35.9]} 24. Qe3 {[%clk 0:06:10.7]} 24... Rh8 {[%clk 0:02:02.8]} 25. Rb4
{[%clk 0:05:58.9]} 25... Rh5 {[%clk 0:01:58.6]} 26. Rb6 {[%clk 0:05:48.2]} 26...
Nc4 {[%clk 0:01:40.4]} 27. Qb3 {[%clk 0:03:16.1]} 27... Nxb6 {[%clk 0:00:59.5]}
28. axb6 {[%clk 0:03:04.9]} 28... Rxc5 {[%clk 0:00:56.9]} 29. dxc5 {[%clk
0:03:02.6]} 29... Qxc5 {[%clk 0:00:58.8]} 30. d6 {[%clk 0:03:01.2]} 30... exd6
{[%clk 0:00:50.2]} 31. Bxb7 {[%clk 0:03:00.4]} 31... Bd4 {[%clk 0:00:42.7]} 32.
Bf3 {[%clk 0:02:56.2]} 32... Bxf2+ {[%clk 0:00:32]} 33. Kh1 {[%clk 0:02:55.9]}
33... Qxb6 {[%clk 0:00:30.6]} 34. Qxb6 {[%clk 0:02:53.1]} 34... Bxb6 {[%clk
0:00:29.5]} 35. Bxh5 {[%clk 0:02:51.7]} 35... gxh5 {[%clk 0:00:29.2]} 36. Rxd6
{[%clk 0:02:48.3]} 36... Bf2 {[%clk 0:00:17.1]} 37. Rxa6 {[%clk 0:02:44.8]}
37... Kf8 {[%clk 0:00:16.1]} 38. b4 {[%clk 0:02:42.1]} 38... Ke7 {[%clk
0:00:17.2]} 39. Ra5 {[%clk 0:02:42]} 39... Kd6 {[%clk 0:00:15]} 40. Rxh5 {[%clk
0:02:41.8]} 40... f6 {[%clk 0:00:15.6]} 41. Rf5 {[%clk 0:02:40.3]} 41... Bd4
{[%clk 0:00:16.2]} 42. Rf4 {[%clk 0:02:38.6]} 42... Ke5 {[%clk 0:00:03.1]} 43.
Rxh4 {[%clk 0:02:37]} 43... f5 {[%clk 0:00:05]} 44. Rxd4 {[%clk 0:02:35.6]}
44... Kxd4 {[%clk 0:00:05.9]} 45. h4 {[%clk 0:02:35.8]} 1-0

[Event "GrandPrix_30.05"]
[Site "Chess.com"]
[Date "2020.05.30"]
[Round "5"]
[White "SavelievAlexei"]
[Black "Jaka_Brilej"]
[Result "0-1"]
[WhiteElo "2178"]
[BlackElo "2137"]
[TimeControl "600+2"]
[EndTime "10:25:05 PDT"]
[Termination "Jaka_Brilej won by resignation"]

1. e4 {[%clk 0:10:01.9]} 1... c5 {[%clk 0:09:55.8]} 2. Nf3 {[%clk 0:10:02.9]}
2... Nc6 {[%clk 0:09:56.4]} 3. Nc3 {[%clk 0:10:03.5]} 3... Nf6 {[%clk 0:09:57]}
4. d4 {[%clk 0:10:03.8]} 4... cxd4 {[%clk 0:09:58.9]} 5. Nxd4 {[%clk 0:10:05.2]}
5... e5 {[%clk 0:09:59.6]} 6. Ndb5 {[%clk 0:10:06.6]} 6... d6 {[%clk 0:09:59.9]}
7. Nd5 {[%clk 0:10:07.6]} 7... Nxd5 {[%clk 0:10:00.5]} 8. exd5 {[%clk
0:10:09.5]} 8... Nb8 {[%clk 0:10:01.4]} 9. c4 {[%clk 0:10:10.1]} 9... Be7 {[%clk
0:10:02]} 10. Be2 {[%clk 0:10:07.5]} 10... O-O {[%clk 0:10:03.4]} 11. O-O {[%clk
0:10:08.3]} 11... f5 {[%clk 0:10:04.6]} 12. f4 {[%clk 0:10:09.6]} 12... Nd7
{[%clk 0:10:04]} 13. Kh1 {[%clk 0:09:57.1]} 13... a6 {[%clk 0:10:03.6]} 14. Nc3
{[%clk 0:09:58]} 14... Bf6 {[%clk 0:09:41.2]} 15. Qc2 {[%clk 0:09:04.6]} 15...
exf4 {[%clk 0:09:03.2]} 16. Bxf4 {[%clk 0:09:02.6]} 16... Ne5 {[%clk 0:09:03.6]}
17. Rae1 {[%clk 0:08:27.6]} 17... Bd7 {[%clk 0:08:58.4]} 18. b3 {[%clk
0:08:21.2]} 18... Rc8 {[%clk 0:08:56.9]} 19. Qd2 {[%clk 0:08:10.6]} 19... b5
{[%clk 0:08:07.4]} 20. cxb5 {[%clk 0:08:06.4]} 20... Ng6 {[%clk 0:08:02.6]} 21.
Nd1 {[%clk 0:07:35]} 21... Nxf4 {[%clk 0:07:57.7]} 22. Qxf4 {[%clk 0:07:36.9]}
22... Be5 {[%clk 0:07:58.1]} 23. Qb4 {[%clk 0:07:37.9]} 23... axb5 {[%clk
0:07:55.8]} 24. Bxb5 {[%clk 0:05:52.8]} 24... Bxb5 {[%clk 0:07:31.2]} 25. Qxb5
{[%clk 0:05:54.7]} 25... Qh4 {[%clk 0:07:31.5]} 26. g3 {[%clk 0:05:55.7]} 26...
Bxg3 {[%clk 0:07:29.1]} 27. Re2 {[%clk 0:05:57.3]} 27... Be5 {[%clk 0:07:10]}
28. Qd3 {[%clk 0:04:57.4]} 28... f4 {[%clk 0:06:58.5]} 29. a4 {[%clk 0:04:26.5]}
29... Rc1 {[%clk 0:06:24.2]} 30. Ref2 {[%clk 0:03:18.9]} 30... Rfc8 {[%clk
0:06:01.3]} 31. a5 {[%clk 0:03:12.2]} 31... Ra1 {[%clk 0:06:01.1]} 32. b4 {[%clk
0:03:09.9]} 32... Rcc1 {[%clk 0:05:58.8]} 33. Rc2 {[%clk 0:01:20.9]} 33... f3
{[%clk 0:05:28]} 34. Qxf3 {[%clk 0:01:19.2]} 34... h6 {[%clk 0:05:07.2]} 35. Rg2
{[%clk 0:00:45.6]} 35... Qf4 {[%clk 0:04:00.3]} 36. Qxf4 {[%clk 0:00:19.3]}
36... Bxf4 {[%clk 0:03:59]} 37. Rgg1 {[%clk 0:00:20.6]} 37... Be5 {[%clk
0:03:56.8]} 38. Kg2 {[%clk 0:00:20.7]} 38... Rc2+ {[%clk 0:03:50.8]} 39. Rf2
{[%clk 0:00:15.5]} 39... Rc4 {[%clk 0:03:14.4]} 40. Ne3 {[%clk 0:00:08.8]} 40...
Rxg1+ {[%clk 0:03:11.7]} 41. Kxg1 {[%clk 0:00:10.7]} 41... Rxb4 {[%clk
0:03:10.7]} 42. Kg2 {[%clk 0:00:09.9]} 42... Ra4 {[%clk 0:03:02.1]} 43. Nc4
{[%clk 0:00:07.2]} 43... Rxc4 {[%clk 0:02:57.4]} 44. Ra2 {[%clk 0:00:07.9]}
44... Bd4 {[%clk 0:02:32.9]} 45. a6 {[%clk 0:00:06.1]} 45... Ba7 {[%clk
0:02:33.5]} 46. Rb2 {[%clk 0:00:07.2]} 46... Ra4 {[%clk 0:02:27.8]} 0-1

[Event "GrandPrix_30.05"]
[Site "Chess.com"]
[Date "2020.05.30"]
[Round "5"]
[White "Mikhail_Golubev"]
[Black "Evgeny81"]
[Result "0-1"]
[WhiteElo "2091"]
[BlackElo "2411"]
[TimeControl "600+2"]
[EndTime "10:25:08 PDT"]
[Termination "Evgeny81 won on time"]

1. e4 {[%clk 0:09:55.7]} 1... e5 {[%clk 0:10:00.3]} 2. Nf3 {[%clk 0:09:56]} 2...
Nc6 {[%clk 0:10:01.5]} 3. Nc3 {[%clk 0:09:57]} 3... Nf6 {[%clk 0:10:01.9]} 4. d4
{[%clk 0:09:57.8]} 4... exd4 {[%clk 0:10:02.4]} 5. Nxd4 {[%clk 0:09:58.8]} 5...
Bb4 {[%clk 0:10:02.6]} 6. Nxc6 {[%clk 0:09:59.7]} 6... bxc6 {[%clk 0:10:03.5]}
7. Bd3 {[%clk 0:09:59.9]} 7... O-O {[%clk 0:10:03.7]} 8. O-O {[%clk 0:10:00]}
8... d5 {[%clk 0:10:04.4]} 9. Bd2 {[%clk 0:10:00.6]} 9... Bd6 {[%clk 0:09:28.2]}
10. Bg5 {[%clk 0:08:47.6]} 10... h6 {[%clk 0:09:02.9]} 11. Bxf6 {[%clk
0:08:16.4]} 11... Qxf6 {[%clk 0:09:03]} 12. exd5 {[%clk 0:08:16.1]} 12... cxd5
{[%clk 0:08:53.1]} 13. Nxd5 {[%clk 0:07:47.1]} 13... Qxb2 {[%clk 0:08:50]} 14.
Qf3 {[%clk 0:06:27]} 14... Qe5 {[%clk 0:07:33.9]} 15. g3 {[%clk 0:06:13]} 15...
Be6 {[%clk 0:07:00.4]} 16. Nf4 {[%clk 0:05:03.3]} 16... Bd7 {[%clk 0:06:18.2]}
17. Rae1 {[%clk 0:04:19.1]} 17... Qf6 {[%clk 0:06:13.7]} 18. Qe4 {[%clk
0:03:50]} 18... g6 {[%clk 0:06:13.8]} 19. Nd5 {[%clk 0:03:46.3]} 19... Qg7
{[%clk 0:06:04.9]} 20. Qh4 {[%clk 0:02:37.7]} 20... Be6 {[%clk 0:05:16.6]} 21.
Ne7+ {[%clk 0:02:08.3]} 21... Bxe7 {[%clk 0:05:07]} 22. Qxe7 {[%clk 0:02:04.8]}
22... Bh3 {[%clk 0:05:07.9]} 23. Qxc7 {[%clk 0:01:34.9]} 23... Bxf1 {[%clk
0:05:05.5]} 24. Kxf1 {[%clk 0:01:35.5]} 24... Qf6 {[%clk 0:04:09.1]} 25. Re7
{[%clk 0:00:16.7]} 25... Rae8 {[%clk 0:03:12.9]} 26. Rxe8 {[%clk 0:00:11.8]}
26... Rxe8 {[%clk 0:03:13.9]} 27. Kg2 {[%clk 0:00:11.9]} 27... Re7 {[%clk
0:03:01.7]} 28. Qd8+ {[%clk 0:00:10.6]} 28... Kg7 {[%clk 0:03:02.1]} 29. Bc4
{[%clk 0:00:10.9]} 29... Qc6+ {[%clk 0:02:40.1]} 30. Bd5 {[%clk 0:00:10.3]}
30... Qc5 {[%clk 0:02:18.5]} 31. Bf3 {[%clk 0:00:05.1]} 31... Re6 {[%clk
0:01:57.7]} 32. Qd3 {[%clk 0:00:04.1]} 32... Rd6 {[%clk 0:01:51.2]} 33. Qb3
{[%clk 0:00:04.7]} 33... Rd2 {[%clk 0:01:48.7]} 34. Qb2+ {[%clk 0:00:02.4]}
34... Kh7 {[%clk 0:01:46.2]} 35. Qf6 {[%clk 0:00:03.1]} 35... Qxf2+ {[%clk
0:01:44.6]} 0-1

[Event "GrandPrix_30.05"]
[Site "Chess.com"]
[Date "2020.05.30"]
[Round "5"]
[White "eristeski7"]
[Black "Pash2015"]
[Result "1/2-1/2"]
[WhiteElo "2157"]
[BlackElo "2211"]
[TimeControl "600+2"]
[EndTime "10:25:11 PDT"]
[Termination "Game drawn by agreement"]

1. e4 {[%clk 0:10:01.5]} 1... c5 {[%clk 0:09:59.3]} 2. Nf3 {[%clk 0:10:00]} 2...
a6 {[%clk 0:10:00.7]} 3. c4 {[%clk 0:09:53.9]} 3... Nc6 {[%clk 0:10:00.7]} 4. d4
{[%clk 0:09:52.8]} 4... cxd4 {[%clk 0:10:02.6]} 5. Nxd4 {[%clk 0:09:54.1]} 5...
e5 {[%clk 0:10:03]} 6. Nc2 {[%clk 0:09:49]} 6... Nf6 {[%clk 0:10:02]} 7. Nc3
{[%clk 0:09:48.6]} 7... Be7 {[%clk 0:10:03.9]} 8. Be2 {[%clk 0:09:47.2]} 8...
O-O {[%clk 0:10:02.3]} 9. O-O {[%clk 0:09:46.3]} 9... d6 {[%clk 0:09:59.4]} 10.
Be3 {[%clk 0:09:15.3]} 10... Be6 {[%clk 0:09:54.7]} 11. f3 {[%clk 0:09:07.6]}
11... h6 {[%clk 0:09:54.6]} 12. Nd5 {[%clk 0:09:01.8]} 12... Rc8 {[%clk
0:09:48.3]} 13. Qd2 {[%clk 0:08:45.7]} 13... Bxd5 {[%clk 0:09:37.8]} 14. cxd5
{[%clk 0:08:41.7]} 14... Nb8 {[%clk 0:09:36]} 15. Rac1 {[%clk 0:08:17]} 15...
Nbd7 {[%clk 0:09:21.3]} 16. Na3 {[%clk 0:08:12.7]} 16... Rxc1 {[%clk 0:09:13.5]}
17. Rxc1 {[%clk 0:08:11.1]} 17... Qb8 {[%clk 0:09:15.4]} 18. Rc2 {[%clk
0:07:38.6]} 18... Rc8 {[%clk 0:09:07.4]} 19. Qc1 {[%clk 0:07:37.3]} 19... Rxc2
{[%clk 0:09:02.9]} 20. Qxc2 {[%clk 0:07:39.2]} 20... Bd8 {[%clk 0:08:53.6]} 21.
b4 {[%clk 0:06:16.5]} 21... Bb6 {[%clk 0:08:49.2]} 22. Bxb6 {[%clk 0:06:09.9]}
22... Nxb6 {[%clk 0:06:45.1]} 23. b5 {[%clk 0:06:00.8]} 23... axb5 {[%clk
0:06:41.1]} 24. Nxb5 {[%clk 0:05:59.6]} 24... Nfd7 {[%clk 0:06:37.2]} 25. Qc7
{[%clk 0:04:47.1]} 25... Qxc7 {[%clk 0:06:31.7]} 26. Nxc7 {[%clk 0:04:46.8]}
26... Kf8 {[%clk 0:06:33.2]} 27. Kf2 {[%clk 0:04:44.4]} 27... Ke7 {[%clk
0:06:30.5]} 28. Ke3 {[%clk 0:04:37.9]} 28... Nc5 {[%clk 0:06:24.2]} 29. Nb5
{[%clk 0:04:32.9]} 29... f5 {[%clk 0:06:20.8]} 30. g3 {[%clk 0:04:19]} 30... g5
{[%clk 0:06:16.4]} 31. g4 {[%clk 0:03:25.4]} 31... f4+ {[%clk 0:06:12.3]} 32.
Kd2 {[%clk 0:03:24.9]} 32... Kd7 {[%clk 0:06:12.9]} 33. Kc3 {[%clk 0:03:15]}
33... Nba4+ {[%clk 0:06:10]} 34. Kb4 {[%clk 0:02:59.2]} 34... Nb6 {[%clk
0:06:02.3]} 35. Kc3 {[%clk 0:02:51.7]} 35... Nc8 {[%clk 0:05:58.3]} 36. Kb4
{[%clk 0:02:50.2]} 36... Ne7 {[%clk 0:05:55.8]} 37. Kc3 {[%clk 0:02:21.6]} 37...
Ng6 {[%clk 0:05:51.1]} 38. Kd2 {[%clk 0:02:20.4]} 38... Nh4 {[%clk 0:05:49.2]}
39. Nc3 {[%clk 0:02:10.1]} 39... Ng2 {[%clk 0:05:39]} 40. Nb5 {[%clk 0:02:08.2]}
40... Ne3 {[%clk 0:05:28.4]} 41. Nc3 {[%clk 0:02:07.3]} 41... Ke7 {[%clk
0:05:25.6]} 42. Bb5 {[%clk 0:01:44.4]} 42... Kd8 {[%clk 0:05:03.3]} 43. Be2
{[%clk 0:01:43.5]} 43... Kd7 {[%clk 0:05:01.1]} 44. Bb5+ {[%clk 0:01:41.2]}
44... Ke7 {[%clk 0:04:59.1]} 45. Be2 {[%clk 0:01:41.4]} 45... Ke8 {[%clk
0:04:35]} 46. Bb5+ {[%clk 0:01:40.4]} 46... Kd8 {[%clk 0:04:35.6]} 47. Be2
{[%clk 0:01:39.9]} 47... Nd7 {[%clk 0:04:26.6]} 48. Nb5 {[%clk 0:01:29.6]} 48...
Ke7 {[%clk 0:04:24.1]} 49. Nc3 {[%clk 0:01:28.9]} 49... Nf6 {[%clk 0:04:21.2]}
50. Nb5 {[%clk 0:01:24.8]} 50... h5 {[%clk 0:04:19]} 51. h3 {[%clk 0:01:23.5]}
51... h4 {[%clk 0:04:02.6]} 52. Nc3 {[%clk 0:01:20.1]} 52... Ne8 {[%clk
0:04:00.1]} 53. Kd3 {[%clk 0:01:17]} 53... Nc7 {[%clk 0:03:57.1]} 54. Kd2 {[%clk
0:01:18]} 54... Kd8 {[%clk 0:03:55]} 55. Nb1 {[%clk 0:01:05.3]} 55... b6 {[%clk
0:03:53.5]} 56. Nc3 {[%clk 0:01:05]} 56... Kc8 {[%clk 0:03:53.1]} 57. Nb1 {[%clk
0:00:57.4]} 57... Ne8 {[%clk 0:03:50.8]} 58. Nc3 {[%clk 0:00:54.8]} 58... Kb7
{[%clk 0:03:47.2]} 59. Nb5 {[%clk 0:00:54.3]} 59... Ng2 {[%clk 0:03:35.8]} 60.
Nc3 {[%clk 0:00:51.6]} 60... Nc7 {[%clk 0:03:27.3]} 61. Bf1 {[%clk 0:00:51.4]}
61... Ne3 {[%clk 0:03:24]} 62. Be2 {[%clk 0:00:52.8]} 62... Ka7 {[%clk
0:03:22.8]} 63. Bd3 {[%clk 0:00:49.4]} 63... Kb8 {[%clk 0:03:18.9]} 64. Be2
{[%clk 0:00:49.1]} 64... Kc8 {[%clk 0:03:18.6]} 65. Bd3 {[%clk 0:00:50.2]}
1/2-1/2

[Event "GrandPrix_30.05"]
[Site "Chess.com"]
[Date "2020.05.30"]
[Round "5"]
[White "Petriashvili02"]
[Black "SantoBlue"]
[Result "0-1"]
[WhiteElo "2322"]
[BlackElo "2532"]
[TimeControl "600+2"]
[EndTime "10:25:14 PDT"]
[Termination "SantoBlue won by resignation"]

1. d4 {[%clk 0:10:01.9]} 1... Nf6 {[%clk 0:09:57.7]} 2. c4 {[%clk 0:10:03.3]}
2... e6 {[%clk 0:09:57.9]} 3. Nf3 {[%clk 0:10:04.9]} 3... b6 {[%clk 0:09:55.1]}
4. g3 {[%clk 0:10:06.3]} 4... Bb7 {[%clk 0:09:56]} 5. Bg2 {[%clk 0:10:07.2]}
5... Be7 {[%clk 0:09:57]} 6. O-O {[%clk 0:10:08.6]} 6... O-O {[%clk 0:09:58.2]}
7. Re1 {[%clk 0:10:08.6]} 7... Na6 {[%clk 0:09:56.3]} 8. Nc3 {[%clk 0:10:05.9]}
8... Ne4 {[%clk 0:09:53.7]} 9. Nxe4 {[%clk 0:08:22.6]} 9... Bxe4 {[%clk
0:09:52.8]} 10. Bd2 {[%clk 0:08:23.8]} 10... c5 {[%clk 0:09:24.9]} 11. Bc3
{[%clk 0:08:21.3]} 11... Nb4 {[%clk 0:09:10.4]} 12. Ne5 {[%clk 0:07:59.5]} 12...
Bxg2 {[%clk 0:08:58.3]} 13. Kxg2 {[%clk 0:08:01.4]} 13... cxd4 {[%clk
0:08:47.6]} 14. Bxd4 {[%clk 0:07:08.4]} 14... Qc7 {[%clk 0:08:44.3]} 15. b3
{[%clk 0:06:45.3]} 15... Rfd8 {[%clk 0:08:30.7]} 16. Nf3 {[%clk 0:06:06.3]}
16... d5 {[%clk 0:08:25.2]} 17. a3 {[%clk 0:05:13.4]} 17... Nc6 {[%clk
0:08:06.6]} 18. cxd5 {[%clk 0:05:08.7]} 18... Nxd4 {[%clk 0:08:04]} 19. Rc1
{[%clk 0:04:35.4]} 19... Qb7 {[%clk 0:07:14.3]} 20. Qxd4 {[%clk 0:04:31.7]}
20... Bxa3 {[%clk 0:07:04.9]} 21. Ra1 {[%clk 0:04:13.7]} 21... Rxd5 {[%clk
0:07:03.9]} 22. Qa4 {[%clk 0:04:14.1]} 22... Bf8 {[%clk 0:06:16.5]} 23. Rec1
{[%clk 0:04:13.2]} 23... Ra5 {[%clk 0:06:07.7]} 24. Qc4 {[%clk 0:04:08.9]} 24...
Rxa1 {[%clk 0:06:07.2]} 25. Rxa1 {[%clk 0:04:10.8]} 25... b5 {[%clk 0:06:05]}
26. Qc3 {[%clk 0:04:01.2]} 26... a6 {[%clk 0:05:52.2]} 27. Qa5 {[%clk
0:04:01.4]} 27... Qe4 {[%clk 0:05:46]} 28. Qd2 {[%clk 0:03:54.5]} 28... h6
{[%clk 0:05:43.4]} 29. Rc1 {[%clk 0:03:49.5]} 29... Qb7 {[%clk 0:05:31]} 30. Qa5
{[%clk 0:03:25.2]} 30... Qd5 {[%clk 0:05:09.6]} 31. Rc3 {[%clk 0:03:02.8]} 31...
Qe4 {[%clk 0:04:42.9]} 32. Re3 {[%clk 0:02:55.3]} 32... Qb7 {[%clk 0:04:33.5]}
33. Rd3 {[%clk 0:02:34.5]} 33... Rc8 {[%clk 0:04:29.1]} 34. h4 {[%clk 0:02:34]}
34... e5 {[%clk 0:04:07]} 35. Re3 {[%clk 0:02:27.3]} 35... e4 {[%clk 0:04:03.9]}
36. Nd2 {[%clk 0:02:14.5]} 36... Bc5 {[%clk 0:03:50.2]} 37. Rc3 {[%clk
0:02:13.7]} 37... e3+ {[%clk 0:03:43.6]} 38. Nf3 {[%clk 0:02:13.9]} 38... exf2
{[%clk 0:03:44]} 39. h5 {[%clk 0:01:23.3]} 39... Qd7 {[%clk 0:03:18.5]} 40. Qa1
{[%clk 0:00:38.9]} 40... Bb6 {[%clk 0:02:58.3]} 41. Rxc8+ {[%clk 0:00:15.3]}
41... Qxc8 {[%clk 0:02:59]} 42. Qe5 {[%clk 0:00:17]} 42... Qc6 {[%clk
0:02:12.1]} 43. e3 {[%clk 0:00:14]} 43... f1=Q+ {[%clk 0:02:08.5]} 44. Kxf1
{[%clk 0:00:15.5]} 44... Qxf3+ {[%clk 0:02:09.7]} 45. Ke1 {[%clk 0:00:17.1]}
45... Qxe3+ {[%clk 0:02:11]} 0-1

[Event "GrandPrix_30.05"]
[Site "Chess.com"]
[Date "2020.05.30"]
[Round "5"]
[White "Malysch"]
[Black "DenisQ"]
[Result "1/2-1/2"]
[WhiteElo "2274"]
[BlackElo "2187"]
[TimeControl "600+2"]
[EndTime "10:25:15 PDT"]
[Termination "Game drawn by agreement"]

1. d4 {[%clk 0:10:01.9]} 1... Nf6 {[%clk 0:09:55.4]} 2. c4 {[%clk 0:10:01.8]}
2... g6 {[%clk 0:09:49.6]} 3. g3 {[%clk 0:09:53.3]} 3... c6 {[%clk 0:09:44]} 4.
Bg2 {[%clk 0:09:46.6]} 4... d5 {[%clk 0:09:43.6]} 5. cxd5 {[%clk 0:09:46]} 5...
cxd5 {[%clk 0:09:45.5]} 6. Nf3 {[%clk 0:09:46.8]} 6... Bg7 {[%clk 0:09:44.2]} 7.
Ne5 {[%clk 0:09:46.8]} 7... O-O {[%clk 0:09:41.5]} 8. Nc3 {[%clk 0:09:47.6]}
8... Nfd7 {[%clk 0:08:59.3]} 9. Nxd5 {[%clk 0:08:57.4]} 9... Nxe5 {[%clk
0:08:53.4]} 10. dxe5 {[%clk 0:08:59.3]} 10... e6 {[%clk 0:08:36.9]} 11. Nf6+
{[%clk 0:08:24.3]} 11... Bxf6 {[%clk 0:08:30.7]} 12. exf6 {[%clk 0:08:26.2]}
12... Qxf6 {[%clk 0:08:25]} 13. O-O {[%clk 0:08:21]} 13... Nc6 {[%clk
0:08:20.5]} 14. Qa4 {[%clk 0:06:56.3]} 14... e5 {[%clk 0:08:01.4]} 15. Be3
{[%clk 0:06:38.7]} 15... Nd4 {[%clk 0:07:07.9]} 16. Bxd4 {[%clk 0:06:27.5]}
16... exd4 {[%clk 0:07:09.8]} 17. Rfd1 {[%clk 0:06:26.3]} 17... d3 {[%clk
0:06:31.5]} 18. Rxd3 {[%clk 0:05:12.4]} 18... Qxb2 {[%clk 0:06:28.7]} 19. Re1
{[%clk 0:05:13.7]} 19... Be6 {[%clk 0:06:18.2]} 20. Qa3 {[%clk 0:04:53.1]} 20...
Qb5 {[%clk 0:05:23.3]} 21. Bf3 {[%clk 0:03:34.9]} 21... a5 {[%clk 0:05:19.5]}
22. Red1 {[%clk 0:02:47.7]} 22... Qb4 {[%clk 0:05:08.1]} 23. Qxb4 {[%clk
0:02:26.2]} 23... axb4 {[%clk 0:05:07.7]} 24. Rb1 {[%clk 0:02:26.1]} 24... Rxa2
{[%clk 0:04:29.4]} 25. Rxb4 {[%clk 0:02:25.8]} 25... Bh3 {[%clk 0:04:12.8]} 26.
Rd1 {[%clk 0:02:04.8]} 26... Rb8 {[%clk 0:03:52]} 27. Rb6 {[%clk 0:01:46.7]}
27... h5 {[%clk 0:03:44.2]} 28. Rdb1 {[%clk 0:01:45]} 28... Kg7 {[%clk
0:03:26.1]} 29. e3 {[%clk 0:01:43.7]} 29... Rd8 {[%clk 0:02:47.2]} 30. R6b2
{[%clk 0:01:15.5]} 30... Rxb2 {[%clk 0:02:40.8]} 31. Rxb2 {[%clk 0:01:17.4]}
31... Rc8 {[%clk 0:02:40.8]} 32. Rb1 {[%clk 0:01:02.8]} 32... b5 {[%clk
0:02:38]} 33. Be2 {[%clk 0:00:56.1]} 33... b4 {[%clk 0:02:27.1]} 34. f3 {[%clk
0:00:56.5]} 34... b3 {[%clk 0:01:26.3]} 35. Rxb3 {[%clk 0:00:51.9]} 35... Rc1+
{[%clk 0:01:27]} 36. Kf2 {[%clk 0:00:52.5]} 36... Rh1 {[%clk 0:01:27.4]} 37. g4
{[%clk 0:00:46.6]} 37... hxg4 {[%clk 0:01:23.1]} 38. fxg4 {[%clk 0:00:46.2]}
38... Rxh2+ {[%clk 0:01:23]} 39. Kg3 {[%clk 0:00:46.5]} 39... Rxe2 {[%clk
0:01:20]} 40. Kxh3 {[%clk 0:00:47.6]} 1/2-1/2

[Event "GrandPrix_30.05"]
[Site "Chess.com"]
[Date "2020.05.30"]
[Round "5"]
[White "RovenVogel"]
[Black "kirillshevchenko"]
[Result "0-1"]
[WhiteElo "2427"]
[BlackElo "2709"]
[TimeControl "600+2"]
[EndTime "10:25:18 PDT"]
[Termination "kirillshevchenko won by resignation"]

1. d4 {[%clk 0:10:01.9]} 1... Nf6 {[%clk 0:10:00.5]} 2. c4 {[%clk 0:09:54.1]}
2... g6 {[%clk 0:10:01.3]} 3. Nc3 {[%clk 0:09:52.7]} 3... d5 {[%clk 0:10:02.2]}
4. cxd5 {[%clk 0:09:50.9]} 4... Nxd5 {[%clk 0:10:02.3]} 5. e4 {[%clk 0:09:47.4]}
5... Nxc3 {[%clk 0:10:03.2]} 6. bxc3 {[%clk 0:09:49.3]} 6... Bg7 {[%clk
0:10:05]} 7. Bc4 {[%clk 0:09:48.2]} 7... c5 {[%clk 0:10:04.9]} 8. Ne2 {[%clk
0:09:49.4]} 8... Nc6 {[%clk 0:10:05.6]} 9. Be3 {[%clk 0:09:49.7]} 9... O-O
{[%clk 0:10:06.3]} 10. O-O {[%clk 0:09:49.9]} 10... Qc7 {[%clk 0:10:07.1]} 11.
Rc1 {[%clk 0:09:01.8]} 11... a6 {[%clk 0:10:06.9]} 12. Qd2 {[%clk 0:08:46.9]}
12... b5 {[%clk 0:10:05.8]} 13. Bd3 {[%clk 0:06:57.1]} 13... Rd8 {[%clk
0:10:05.5]} 14. Bh6 {[%clk 0:06:27.7]} 14... Bh8 {[%clk 0:10:01.5]} 15. e5
{[%clk 0:05:12.2]} 15... Nxe5 {[%clk 0:08:15.3]} 16. Qf4 {[%clk 0:04:36.7]}
16... Bb7 {[%clk 0:07:40.6]} 17. Bb1 {[%clk 0:03:04.9]} 17... Qc6 {[%clk
0:07:27.3]} 18. f3 {[%clk 0:03:02.3]} 18... Nc4 {[%clk 0:07:27.5]} 19. Be4
{[%clk 0:03:02.7]} 19... Qd7 {[%clk 0:07:13.3]} 20. dxc5 {[%clk 0:02:52]} 20...
Rac8 {[%clk 0:05:39.9]} 21. a4 {[%clk 0:02:30.7]} 21... Rxc5 {[%clk 0:04:50.1]}
22. axb5 {[%clk 0:02:30.4]} 22... axb5 {[%clk 0:04:52]} 23. Bxb7 {[%clk
0:02:14]} 23... Qxb7 {[%clk 0:04:52.2]} 24. Ng3 {[%clk 0:02:15]} 24... Be5
{[%clk 0:04:24.8]} 25. Qg4 {[%clk 0:01:52.9]} 25... Bxg3 {[%clk 0:03:55]} 26.
Qxg3 {[%clk 0:01:48.4]} 26... f6 {[%clk 0:03:47.7]} 27. Rcd1 {[%clk 0:01:45.4]}
27... Rcd5 {[%clk 0:03:42.7]} 28. Rxd5 {[%clk 0:01:43.5]} 28... Qxd5 {[%clk
0:03:43.7]} 29. Qc7 {[%clk 0:01:40.6]} 29... Qd6 {[%clk 0:03:39.3]} 30. Qb7
{[%clk 0:01:31.9]} 30... Qb6+ {[%clk 0:03:39.5]} 31. Qxb6 {[%clk 0:01:32.6]}
31... Nxb6 {[%clk 0:03:41.4]} 32. Be3 {[%clk 0:01:24.1]} 32... Nd5 {[%clk
0:03:06.8]} 33. Rd1 {[%clk 0:01:24.1]} 33... e6 {[%clk 0:02:58.2]} 34. Bc5
{[%clk 0:01:15.8]} 34... Rc8 {[%clk 0:02:54.3]} 35. Bd4 {[%clk 0:01:14.6]} 35...
Nxc3 {[%clk 0:02:28.7]} 36. Bxc3 {[%clk 0:01:13.7]} 36... Rxc3 {[%clk
0:02:30.6]} 37. Rd8+ {[%clk 0:01:15.2]} 37... Kg7 {[%clk 0:02:32.1]} 38. Rd7+
{[%clk 0:01:17.1]} 38... Kh6 {[%clk 0:02:33.6]} 39. f4 {[%clk 0:01:12.2]} 39...
Rc4 {[%clk 0:02:21.6]} 40. g3 {[%clk 0:01:10.3]} 40... b4 {[%clk 0:02:07.5]} 41.
Rb7 {[%clk 0:01:04.5]} 41... g5 {[%clk 0:01:48.8]} 42. Rb6 {[%clk 0:00:57.8]}
42... gxf4 {[%clk 0:01:43.4]} 43. Rxe6 {[%clk 0:00:57.1]} 43... Kg5 {[%clk
0:01:41]} 44. gxf4+ {[%clk 0:00:53.8]} 44... Rxf4 {[%clk 0:01:42.9]} 45. Kg2
{[%clk 0:00:52.9]} 45... Rc4 {[%clk 0:01:40.4]} 46. Rb6 {[%clk 0:00:51.6]} 46...
Rc2+ {[%clk 0:01:40.6]} 47. Kg3 {[%clk 0:00:51.4]} 47... Rc3+ {[%clk 0:01:41.5]}
0-1